fUSD/lending_fUSD_20250322
["ID","MTS","AMOUNT","RATE_DAILY","PERIOD"]
[356524509,1742611849679,-500.0,0.00046849,120]
[356524510,1742611849689,-500.0,0.00046849,120]
[356524511,1742611849699,-500.0,0.00046849,120]
[356524512,1742611849710,-500.0,0.00046849,120]
[356524513,1742611849720,-500.0,0.00046849,120]
[356524514,1742611849729,-571.77,0.00046849,120]
[356524515,1742611849739,-1188.07,0.00046849,120]
[356524516,1742611849748,-1166.84,0.00046849,120]
[356524517,1742611849758,-840.25,0.00046849,120]
[356524518,1742611849767,-609.82,0.00046849,120]
[356524519,1742611849777,-500.0,0.00046849,120]
[356524520,1742611849787,-500.0,0.00046849,120]
[356524521,1742611849796,-500.0,0.00046849,120]
[356524522,1742611849806,-168.60332886,0.00046849,120]
[356524523,1742611849816,-800.08,0.00046849,120]
[356524524,1742611849825,-1014.78,0.00046849,120]
[356524525,1742611849835,-500.0,0.00046849,120]
[356524526,1742611849844,-672.78,0.00046849,120]
[356524527,1742611849854,-500.0,0.00046849,120]
[356524528,1742611849867,-1087.82,0.00046849,120]
[356524529,1742611849876,-500.0,0.00046849,120]
[356524530,1742611849886,-500.0,0.00046849,120]
[356524531,1742611849895,-500.0,0.00046849,120]
[356524532,1742611849904,-500.0,0.00046849,120]
[356524533,1742611849914,-500.0,0.00046849,120]
[356524534,1742611849924,-500.0,0.00046849,120]
[356524535,1742611849934,-537.33,0.00046849,120]
[356524536,1742611849943,-592.25,0.00046849,120]
[356524537,1742611849952,-500.0,0.00046849,120]
[356524538,1742611849962,-500.0,0.00046849,120]
[356524539,1742611849972,-500.0,0.00046849,120]
[356524540,1742611849981,-527.9,0.00046849,120]
[356524541,1742611849991,-500.0,0.00046849,120]
[356524542,1742611850001,-500.0,0.00046849,120]
[356524543,1742611850011,-500.0,0.00046849,120]
[356524544,1742611850021,-500.0,0.00046849,120]
[356524545,1742611850031,-500.0,0.00046849,120]
[356524546,1742611850040,-659.25,0.00046849,120]
[356524547,1742611850050,-500.0,0.00046849,120]
[356524548,1742611850060,-791.65,0.00046849,120]
[356524549,1742611850069,-1015.43,0.00046849,120]
[356524550,1742611850079,-2002.41,0.00046849,120]
[356524551,1742611850089,-500.0,0.00046849,120]
[356524552,1742611850098,-500.0,0.00046849,120]
[356524553,1742611850108,-526.74,0.00046849,120]
[356524554,1742611850117,-500.0,0.00046849,120]
[356524555,1742611850127,-500.0,0.00046849,120]
[356524556,1742611850137,-500.0,0.00046849,120]
[356524557,1742611850147,-500.0,0.00046849,120]
[356524558,1742611850156,-500.0,0.00046849,120]
[356524559,1742611850165,-500.0,0.00046849,120]
[356524560,1742611850176,-870.18,0.00046849,120]
[356524561,1742611850185,-528.09606399,0.00046849,120]
[356524562,1742611850194,-820.62,0.00046849,120]
[356524563,1742611850204,-545.33021378,0.00046849,120]
[356524564,1742611850213,-523.95,0.00046849,120]
[356524565,1742611850223,-500.0,0.00046849,120]
[356524566,1742611850232,-500.0,0.00046849,120]
[356524567,1742611850242,-1404.38,0.00046849,120]
[356524568,1742611850251,-500.0,0.00046849,120]
[356524569,1742611850261,-500.0,0.00046849,120]
[356524570,1742611850271,-500.0,0.00046849,120]
[356524571,1742611850282,-500.0,0.00046849,120]
[356524572,1742611850292,-500.0,0.00046849,120]
[356524573,1742611850302,-1059.2,0.00046849,120]
[356524574,1742611850312,-500.0,0.00046849,120]
[356524575,1742611850322,-500.0,0.00046849,120]
[356524576,1742611850332,-521.28,0.00046849,120]
[356524577,1742611850341,-500.0,0.00046849,120]
[356524578,1742611850351,-500.0,0.00046849,120]
[356524579,1742611850360,-565.34,0.00046849,120]
[356524580,1742611850370,-554.28,0.00046849,120]
[356524581,1742611850381,-500.0,0.00046849,120]
[356524582,1742611850391,-929.87,0.00046849,120]
[356524583,1742611850401,-500.0,0.00046849,120]
[356524584,1742611850410,-500.0,0.00046849,120]
[356524585,1742611850420,-500.0,0.00046849,120]
[356524586,1742611850430,-500.0,0.00046849,120]
[356524587,1742611850440,-563.76,0.00046849,120]
[356524588,1742611850450,-500.0,0.00046849,120]
[356524589,1742611850460,-500.0,0.00046849,120]
[356524590,1742611850470,-760.23,0.00046849,120]
[356524591,1742611850480,-500.0,0.00046849,120]
[356524592,1742611850490,-500.0,0.00046849,120]
[356524593,1742611850500,-500.0,0.00046849,120]
[356524594,1742611850510,-500.0,0.00046849,120]
[356524595,1742611850520,-500.0,0.00046849,120]
[356524596,1742611850530,-500.0,0.00046849,120]
[356524597,1742611850539,-538.52,0.00046849,120]
[356524598,1742611850549,-500.0,0.00046849,120]
[356524599,1742611850559,-500.0,0.00046849,120]
[356524600,1742611850569,-486.57917011,0.00046849,120]
[356524601,1742611850579,-789.08,0.00046849,120]
[356524602,1742611850588,-525.4176268,0.00046849,120]
[356524603,1742611850599,-500.0,0.00046849,120]
[356524604,1742611850608,-500.0,0.00046849,120]
[356524605,1742611850618,-1282.78,0.00046849,120]
[356524606,1742611850627,-500.0,0.00046849,120]
[356524607,1742611850640,-500.0,0.00046849,120]
[356524608,1742611850649,-598.0270512,0.00046849,120]
[356524609,1742611850659,-500.0,0.00046849,120]
[356524610,1742611850668,-553.12,0.00046849,120]
[356524611,1742611850679,-500.0,0.00046849,120]
[356524612,1742611850688,-500.0,0.00046849,120]
[356524613,1742611850698,-500.0,0.00046849,120]
[356524614,1742611850708,-500.0,0.00046849,120]
[356524615,1742611850717,-500.0,0.00046849,120]
[356524616,1742611850728,-1007.19,0.00046849,120]
[356524617,1742611850737,-500.0,0.00046849,120]
[356524618,1742611850746,-500.0,0.00046849,120]
[356524619,1742611850756,-671.81,0.00046849,120]
[356524620,1742611850765,-500.0,0.00046849,120]
[356524621,1742611850775,-500.0,0.00046849,120]
[356524622,1742611850784,-500.0,0.00046849,120]
[356524623,1742611850793,-666.32,0.00046849,120]
[356524624,1742611850804,-501.598759,0.00046849,120]
[356524625,1742611850813,-352.41101156,0.00046849,120]
[356524626,1742611850822,-500.0,0.00046849,120]
[356524627,1742611850832,-500.0,0.00046849,120]
[356524628,1742611850841,-843.31,0.00046849,120]
[356524629,1742611850861,-500.0,0.00046849,120]
[356524630,1742611850872,-505.78508228,0.00046849,120]
[356524631,1742611850882,-500.0,0.00046849,120]
[356524632,1742611850892,-500.0,0.00046849,120]
[356524633,1742611850902,-649.75,0.00046849,120]
[356524634,1742611850912,-500.0,0.00046849,120]
[356524635,1742611850922,-2302.72,0.00046849,120]
[356524636,1742611850932,-821.97,0.00046849,120]
[356524637,1742611850942,-662.25,0.00046849,120]
[356524638,1742611850952,-649.19,0.00046849,120]
[356524639,1742611850962,-500.0,0.00046849,120]
[356524640,1742611850972,-500.0,0.00046849,120]
[356524641,1742611850981,-559.88,0.00046849,120]
[356524642,1742611850991,-500.0,0.00046849,120]
[356524643,1742611851002,-537.57874559,0.00046849,120]
[356524644,1742611851012,-1452.64,0.00046849,120]
[356524645,1742611851022,-500.0,0.00046849,120]
[356524646,1742611851032,-293.42281499,0.00046849,120]
[356524647,1742611851042,-1352.84,0.00046849,120]
[356524648,1742611851053,-564.62,0.00046849,120]
[356524649,1742611851063,-532.03,0.00046849,120]
[356524650,1742611851072,-726.18,0.00046849,120]
[356524651,1742611851082,-500.0,0.00046849,120]
[356524652,1742611851092,-500.0,0.00046849,120]
[356524653,1742611851102,-572.81,0.00046849,120]
[356524654,1742611851112,-500.0,0.00046849,120]
[356524655,1742611851122,-500.0,0.00046849,120]
[356524656,1742611851133,-500.0,0.00046849,120]
[356524657,1742611851142,-500.0,0.00046849,120]
[356524658,1742611851152,-850.66,0.00046849,120]
[356524659,1742611851162,-500.0,0.00046849,120]
[356524660,1742611851172,-500.0,0.00046849,120]
[356524661,1742611851182,-500.0,0.00046849,120]
[356524662,1742611851192,-500.0,0.00046849,120]
[356524663,1742611851202,-1387.46,0.00046849,120]
[356524664,1742611851212,-588.22,0.00046849,120]
[356524665,1742611851222,-500.0,0.00046849,120]
[356524666,1742611851231,-544.6833133,0.00046849,120]
[356524667,1742611851241,-500.0,0.00046849,120]
[356524668,1742611851251,-500.0,0.00046849,120]
[356524669,1742611851263,-500.0,0.00046849,120]
[356524670,1742611851272,-1125.1,0.00046849,120]
[356524671,1742611851282,-500.0,0.00046849,120]
[356524672,1742611851292,-520.74576881,0.00046849,120]
[356524673,1742611851302,-500.0,0.00046849,120]
[356524674,1742611851311,-430.48037889,0.00046849,120]
[356524675,1742611851321,-580.15,0.00046849,120]
[356524676,1742611851331,-500.0,0.00046849,120]
[356524677,1742611851340,-500.0,0.00046849,120]
[356524678,1742611851350,-1859.08,0.00046849,120]
[356524679,1742611851360,-190.40839661,0.00046849,120]
[356524680,1742611851370,-387.44572285,0.00046849,120]
[356524681,1742611851380,-812.05,0.00046849,120]
[356524682,1742611851390,-864.4,0.00046849,120]
[356524683,1742611851399,-775.98,0.00046849,120]
[356524684,1742611851409,-500.0,0.00046849,120]
[356524685,1742611851420,-500.0,0.00046849,120]
[356524686,1742611851430,-572.15,0.00046849,120]
[356524687,1742611851440,-500.0,0.00046849,120]
[356524688,1742611851449,-500.0,0.00046849,120]
[356524689,1742611851459,-500.0,0.00046849,120]
[356524690,1742611851469,-583.73,0.00046849,120]
[356524691,1742611851478,-500.0,0.00046849,120]
[356524692,1742611851488,-500.0,0.00046849,120]
[356524693,1742611851498,-1183.05,0.00046849,120]
[356524694,1742611851508,-1586.95,0.00046849,120]
[356524695,1742611851518,-820.94,0.00046849,120]
[356524696,1742611851528,-601.72,0.00046849,120]
[356524697,1742611851538,-459.64877363,0.00046849,120]
[356524698,1742611851548,-500.0,0.00046849,120]
[356524699,1742611851558,-500.0,0.00046849,120]
[356524700,1742611851568,-500.0,0.00046849,120]
[356524701,1742611851579,-500.0,0.00046849,120]
[356524702,1742611851589,-2592.19,0.00046849,120]
[356524703,1742611851599,-500.0,0.00046849,120]
[356524704,1742611851608,-500.0,0.00046849,120]
[356524705,1742611851617,-500.0,0.00046849,120]
[356524706,1742611851627,-752.92,0.00046849,120]
[356524707,1742611851639,-500.0,0.00046849,120]
[356524708,1742611851649,-1342.96,0.00046849,120]
[356524709,1742611851658,-500.0,0.00046849,120]
[356524710,1742611851668,-350.0,0.00046849,2]
[356524711,1742611851677,-1185.94,0.00046849,120]
[356524712,1742611851689,-1561.98,0.00046849,120]
[356524713,1742611851700,-500.0,0.00046849,120]
[356524714,1742611851711,-1120.74,0.00046849,120]
[356524715,1742611851923,-500.0,0.00046849,120]
[356524716,1742611851933,-3310.52,0.00046849,120]
[356524717,1742611851943,-500.0,0.00046849,120]
[356524718,1742611851953,-500.0,0.00046849,120]
[356524719,1742611851963,-2389.08,0.00046849,120]
[356524720,1742611851972,-500.0,0.00046849,120]
[356524721,1742611851982,-548.34,0.00046849,120]
[356524722,1742611851991,-369.81642607,0.00046849,120]
[356524723,1742611852002,-500.0,0.00046849,120]
[356524724,1742611852012,-631.98,0.00046849,120]
[356524725,1742611852022,-500.0,0.00046849,120]
[356524726,1742611852031,-913.43,0.00046849,120]
[356524727,1742611852041,-964.99,0.00046849,120]
[356524728,1742611852050,-476.88007378,0.00046849,120]
[356524729,1742611852060,-837.06,0.00046849,120]
[356524730,1742611852069,-980.58,0.00046849,120]
[356524731,1742611852078,-681.66,0.00046849,120]
[356524732,1742611852088,-500.0,0.00046849,120]
[356524733,1742611852099,-759.62,0.00046849,120]
[356524734,1742611852108,-500.0,0.00046849,120]
[356524735,1742611852118,-500.0,0.00046849,120]
[356524736,1742611852127,-500.0,0.00046849,120]
[356524737,1742611852136,-541.96730022,0.00046849,120]
[356524738,1742611852145,-500.0,0.00046849,120]
[356524739,1742611852155,-500.0,0.00046849,120]
[356524740,1742611852165,-636.69,0.00046849,120]
[356524741,1742611852174,-946.02,0.00046849,120]
[356524742,1742611852184,-500.0,0.00046849,120]
[356524743,1742611852193,-500.0,0.00046849,120]
[356524744,1742611852203,-998.26,0.00046849,120]
[356524745,1742611852213,-500.0,0.00046849,120]
[356524746,1742611852222,-923.78,0.00046849,120]
[356524747,1742611852231,-2017.89,0.00046849,120]
[356524748,1742611852240,-3830.33,0.00046849,120]
[356524749,1742611852250,-500.0,0.00046849,120]
[356524750,1742611852259,-895.19,0.00046849,120]
[356524751,1742611852269,-521.72281425,0.00046849,120]
[356524752,1742611852278,-1258.29,0.00046849,120]
[356524753,1742611852288,-565.79366921,0.00046849,120]
[356524754,1742611852297,-500.0,0.00046849,120]
[356524755,1742611852306,-500.0,0.00046849,120]
[356524756,1742611852316,-574.93568123,0.00046849,120]
[356524757,1742611852325,-500.0,0.00046849,120]
[356524758,1742611852334,-500.0,0.00046849,120]
[356524759,1742611852343,-951.78,0.00046849,120]
[356524760,1742611852352,-606.77,0.00046849,120]
[356524761,1742611852362,-2330.62,0.00046849,120]
[356524762,1742611852371,-515.06499651,0.00046849,120]
[356524763,1742611852381,-500.0,0.00046849,120]
[356524764,1742611852390,-500.0,0.00046849,120]
[356524765,1742611852399,-500.0,0.00046849,120]
[356524766,1742611852409,-500.0,0.00046849,120]
[356524767,1742611852419,-676.41,0.00046849,120]
[356524768,1742611852428,-500.0,0.00046849,120]
[356524769,1742611852437,-537.47,0.00046849,120]
[356524770,1742611852447,-1149.87,0.00046849,120]
[356524771,1742611852456,-500.0,0.00046849,120]
[356524772,1742611852465,-620.00931973,0.00046849,120]
[356524773,1742611852474,-500.0,0.00046849,120]
[356524774,1742611852484,-3186.6,0.00046849,120]
[356524775,1742611852494,-754.53,0.00046849,120]
[356524776,1742611852503,-603.18,0.00046849,120]
[356524777,1742611852513,-500.0,0.00046849,120]
[356524778,1742611852523,-500.0,0.00046849,120]
[356524779,1742611852532,-990.18,0.00046849,120]
[356524780,1742611852542,-500.0,0.00046849,120]
[356524781,1742611852552,-500.0,0.00046849,120]
[356524782,1742611852561,-1006.89,0.00046849,120]
[356524783,1742611852570,-500.0,0.00046849,120]
[356524784,1742611852579,-500.0,0.00046849,120]
[356524785,1742611852588,-500.0,0.00046849,120]
[356524786,1742611852597,-786.18,0.00046849,120]
[356524787,1742611852607,-500.0,0.00046849,120]
[356524788,1742611852616,-1406.16,0.00046849,120]
[356524789,1742611852626,-500.0,0.00046849,120]
[356524790,1742611852638,-500.0,0.00046849,120]
[356524791,1742611852647,-1373.28,0.00046849,120]
[356524792,1742611852657,-2443.9,0.00046849,120]
[356524793,1742611852666,-1123.33,0.00046849,120]
[356524794,1742611852676,-511.26523356,0.00046849,120]
[356524795,1742611852685,-1733.21,0.00046849,120]
[356524796,1742611852694,-500.0,0.00046849,120]
[356524797,1742611852702,-817.55,0.00046849,120]
[356524798,1742611852713,-509.06917873,0.00046849,120]
[356524799,1742611852722,-652.89,0.00046849,120]
[356524800,1742611852732,-500.0,0.00046849,120]
[356524801,1742611852741,-500.0,0.00046849,120]
[356524802,1742611852750,-500.0,0.00046849,120]
[356524803,1742611852758,-682.46,0.00046849,120]
[356524804,1742611852767,-500.0,0.00046849,120]
[356524805,1742611852775,-500.0,0.00046849,120]
[356524806,1742611852784,-6405.61,0.00046849,120]
[356524807,1742611852792,-1482.2,0.00046849,120]
[356524808,1742611852801,-500.0,0.00046849,120]
[356524809,1742611852809,-500.0,0.00046849,120]
[356524810,1742611852817,-500.0,0.00046849,120]
[356524811,1742611852825,-1550.83,0.00046849,120]
[356524812,1742611852834,-2534.92,0.00046849,120]
[356524813,1742611852842,-806.86,0.00046849,120]
[356524814,1742611852849,-500.0,0.00046849,120]
[356524815,1742611852857,-575.94,0.00046849,120]
[356524816,1742611852866,-1777.54,0.00046849,120]
[356524817,1742611852875,-775.35,0.00046849,120]
[356524818,1742611852885,-500.0,0.00046849,120]
[356524819,1742611852894,-500.0,0.00046849,120]
[356524820,1742611852903,-887.92,0.00046849,120]
[356524821,1742611852912,-516.33143053,0.00046849,120]
[356524822,1742611852922,-500.0,0.00046849,120]
[356524823,1742611852931,-500.0,0.00046849,120]
[356524824,1742611852941,-500.0,0.00046849,120]
[356524825,1742611852950,-500.0,0.00046849,120]
[356524826,1742611852959,-1313.27,0.00046849,120]
[356524827,1742611852969,-518.33,0.00046849,120]
[356524828,1742611852978,-866.43,0.00046849,120]
[356524829,1742611852987,-500.0,0.00046849,120]
[356524830,1742611852996,-500.0,0.00046849,120]
[356524831,1742611853006,-500.0,0.00046849,120]
[356524832,1742611853016,-500.0,0.00046849,120]
[356524833,1742611853025,-500.0,0.00046849,120]
[356524834,1742611853034,-500.0,0.00046849,120]
[356524835,1742611853043,-500.0,0.00046849,120]
[356524836,1742611853053,-500.0,0.00046849,120]
[356524837,1742611853062,-565.29,0.00046849,120]
[356524838,1742611853072,-500.0,0.00046849,120]
[356524839,1742611853081,-500.0,0.00046849,120]
[356524840,1742611853090,-732.32,0.00046849,120]
[356524841,1742611853100,-500.0,0.00046849,120]
[356524842,1742611853109,-500.0,0.00046849,120]
[356524843,1742611853118,-861.67,0.00046849,120]
[356524844,1742611853127,-1541.72,0.00046849,120]
[356524845,1742611853137,-1034.23,0.00046849,120]
[356524846,1742611853146,-500.0,0.00046849,120]
[356524847,1742611853156,-2533.52,0.00046849,120]
[356524848,1742611853165,-500.0,0.00046849,120]
[356524849,1742611853174,-500.0,0.00046849,120]
[356524850,1742611853184,-934.42,0.00046849,120]
[356524851,1742611853193,-500.0,0.00046849,120]
[356524852,1742611853203,-871.89,0.00046849,120]
[356524853,1742611853212,-1089.17,0.00046849,120]
[356524854,1742611853221,-500.0,0.00046849,120]
[356524855,1742611853230,-753.13,0.00046849,120]
[356524856,1742611853240,-500.0,0.00046849,120]
[356524857,1742611853249,-827.2,0.00046849,120]
[356524858,1742611853258,-500.0,0.00046849,120]
[356524859,1742611853268,-668.78,0.00046849,120]
[356524860,1742611853278,-1280.87,0.00046849,120]
[356524861,1742611853287,-500.0,0.00046849,120]
[356524862,1742611853296,-1126.32,0.00046849,120]
[356524863,1742611853306,-500.0,0.00046849,120]
[356524864,1742611853315,-876.29,0.00046849,120]
[356524865,1742611853325,-300.0,0.00046849,2]
[356524866,1742611853334,-1240.79,0.00046849,120]
[356524867,1742611853343,-2334.21,0.00046849,120]
[356524868,1742611853353,-779.56,0.00046849,120]
[356524869,1742611853362,-6439.02,0.00046849,2]
[356524870,1742611853372,-500.0,0.00046849,120]
[356524871,1742611853382,-500.0,0.00046849,120]
[356524872,1742611853391,-783.62,0.00046849,120]
[356524873,1742611853400,-612.57,0.00046849,120]
[356524874,1742611853410,-500.0,0.00046849,120]
[356524875,1742611853419,-756.87,0.00046849,120]
[356524876,1742611853429,-587.84,0.00046849,120]
[356524877,1742611853439,-656.86,0.00046849,120]
[356524878,1742611853448,-500.0,0.00046849,120]
[356524879,1742611853458,-500.0,0.00046849,120]
[356524880,1742611853467,-2779.88,0.00046849,120]
[356524881,1742611853476,-500.0,0.00046849,120]
[356524882,1742611853486,-500.0,0.00046849,120]
[356524883,1742611853494,-799.61,0.00046849,120]
[356524884,1742611853504,-1143.67,0.00046849,120]
[356524885,1742611853514,-872.38,0.00046849,120]
[356524886,1742611853524,-500.0,0.00046849,120]
[356524887,1742611853534,-857.2,0.00046849,120]
[356524888,1742611853543,-692.21,0.00046849,120]
[356524889,1742611853553,-3216.23,0.00046849,120]
[356524890,1742611853562,-607.91,0.00046849,120]
[356524891,1742611853571,-1720.52,0.00046849,120]
[356524892,1742611853581,-697.74,0.00046849,120]
[356524893,1742611853590,-500.0,0.00046849,120]
[356524894,1742611853600,-1482.05,0.00046849,120]
[356524895,1742611853609,-1884.66,0.00046849,120]
[356524896,1742611853619,-277.09362657,0.00046849,120]
[356524897,1742611853628,-500.0,0.00046849,120]
[356524898,1742611853640,-500.0,0.00046849,120]
[356524899,1742611853649,-563.42157277,0.00046849,120]
[356524900,1742611853659,-676.42,0.00046849,120]
[356524901,1742611853668,-546.35,0.00046849,120]
[356524902,1742611853679,-500.0,0.00046849,120]
[356524903,1742611853688,-714.38,0.00046849,120]
[356524904,1742611853698,-2550.36,0.00046849,120]
[356524905,1742611853709,-512.4890447,0.00046849,120]
[356524906,1742611853718,-1172.61,0.00046849,120]
[356524907,1742611853728,-500.0,0.00046849,120]
[356524908,1742611853739,-500.0,0.00046849,120]
[356524909,1742611853748,-500.0,0.00046849,120]
[356524910,1742611853757,-500.0,0.00046849,120]
[356524911,1742611853767,-1489.37,0.00046849,120]
[356524912,1742611853776,-727.27,0.00046849,120]
[356524913,1742611853787,-500.0,0.00046849,120]
[356524914,1742611853796,-1397.37,0.00046849,120]
[356524915,1742611853806,-500.0,0.00046849,120]
[356524916,1742611853815,-500.0,0.00046849,120]
[356524917,1742611853825,-500.0,0.00046849,120]
[356524918,1742611853834,-500.0,0.00046849,120]
[356524919,1742611853844,-2848.73,0.00046849,120]
[356524920,1742611853853,-500.0,0.00046849,120]
[356524921,1742611853863,-1761.51,0.00046849,120]
[356524922,1742611853872,-501.95320651,0.00046849,120]
[356524923,1742611853881,-597.74,0.00046849,120]
[356524924,1742611853891,-1550.8,0.00046849,120]
[356524925,1742611853899,-568.04,0.00046849,120]
[356524926,1742611853909,-500.0,0.00046849,120]
[356524927,1742611853918,-227.39472848,0.00046849,120]
[356524928,1742611855476,-169.128,0.00045236,2]
[356524929,1742611855486,-130.122,0.000462,2]
[356524930,1742611855516,-421.5,0.000462,2]
[356524931,1742611856030,-281.754,0.00045236,2]
[356524932,1742611856039,-448.378,0.000462,2]
[356524933,1742611856049,-2212.41581803,0.00046465,38]
[356524934,1742611856076,-252.74669694,0.00046465,38]
[356524935,1742611856653,-658.26302627,0.00046465,38]
[356524936,1742611856803,-308.28481549,0.00046465,38]
[356524937,1742611857879,-330.37025421,0.00046465,38]
[356524938,1742611858243,-241.931,0.00045238,2]
[356524939,1742611858254,-309.46828284,0.00046465,38]
[356524940,1742611858263,-250.0,0.00046474,120]
[356524941,1742611858272,-205.98211716,0.00046565,30]
[356524942,1742611858283,-574.63788284,0.00046565,30]
[356524943,1742611858293,-500.0,0.00046575,120]
[356524944,1742611858302,-500.0,0.00046575,120]
[356524945,1742611858311,-500.0,0.00046575,120]
[356524946,1742611858320,-1000.0,0.00046575,120]
[356524947,1742611858330,-500.0,0.00046575,120]
[356524948,1742611858340,-500.0,0.00046575,120]
[356524949,1742611858349,-500.0,0.00046575,120]
[356524950,1742611858358,-500.0,0.00046575,120]
[356524951,1742611858367,-500.0,0.00046575,120]
[356524952,1742611858376,-500.0,0.00046575,120]
[356524953,1742611858386,-500.0,0.00046575,120]
[356524954,1742611858395,-500.0,0.00046575,120]
[356524955,1742611858405,-1237.0,0.00046849,7]
[356524956,1742611858415,-485.07527152,0.00046849,120]
[356524957,1742611858424,-500.0,0.00046849,120]
[356524958,1742611858433,-536.99,0.00046849,120]
[356524959,1742611858442,-513.65936007,0.00046849,120]
[356524960,1742611858451,-500.0,0.00046849,120]
[356524961,1742611858461,-5306.13,0.00046849,120]
[356524962,1742611858471,-641.09136941,0.00046849,120]
[356524963,1742611858480,-530.4,0.00046849,120]
[356524964,1742611858488,-2151.61,0.00046849,120]
[356524965,1742611858498,-459.54567401,0.00046849,120]
[356524966,1742611858511,-147.48432599,0.00046849,120]
[356524967,1742611858520,-124.34567401,0.00046849,120]
[356524968,1742611858531,-592.42432599,0.00046849,120]
[356524969,1742611858540,-500.0,0.00046849,120]
[356524970,1742611858550,-662.51,0.00046849,120]
[356524971,1742611858560,-517.15,0.00046849,120]
[356524972,1742611858570,-2.05726401,0.00046849,120]
[356524973,1742611858609,-950.83191993,0.00046849,120]
[356524974,1742611858731,-706.15081606,0.00046849,120]
[356524975,1742611858741,-500.0,0.00046849,120]
[356524976,1742611858750,-1456.52,0.00046849,120]
[356524977,1742611858759,-227.66750007,0.00046849,120]
[356524978,1742611858798,-272.33249993,0.00046849,120]
[356524979,1742611858807,-1285.08,0.00046849,120]
[356524980,1742611858816,-8458.93,0.00046849,120]
[356524981,1742611858825,-500.0,0.00046849,120]
[356524982,1742611858834,-350.65,0.00046849,7]
[356524983,1742611858843,-2670.3,0.00046849,120]
[356524984,1742611858852,-500.0,0.00046849,120]
[356524985,1742611858862,-500.0,0.00046849,120]
[356524986,1742611858871,-500.0,0.00046849,120]
[356524987,1742611858879,-1049.52,0.00046849,120]
[356524988,1742611858888,-1671.49,0.00046849,10]
[356524989,1742611858897,-1182.02,0.00046849,120]
[356524990,1742611858906,-500.0,0.00046849,120]
[356524991,1742611858916,-500.0,0.00046849,120]
[356524992,1742611858925,-500.0,0.00046849,120]
[356524993,1742611858934,-500.0,0.00046849,120]
[356524994,1742611858943,-625.12,0.00046849,120]
[356524995,1742611858952,-1335.31,0.00046849,120]
[356524996,1742611858961,-500.0,0.00046849,120]
[356524997,1742611858970,-3500.0,0.00046849,10]
[356524998,1742611858979,-500.0,0.00046849,120]
[356524999,1742611858988,-500.0,0.00046849,120]
[356525000,1742611858997,-505.43,0.00046849,120]
[356525001,1742611859006,-1665.18,0.00046849,120]
[356525002,1742611859016,-500.0,0.00046849,120]
[356525003,1742611859025,-179.90744389,0.00046849,120]
[356525004,1742611859034,-654.05,0.00046849,120]
[356525005,1742611859044,-981.68,0.00046849,120]
[356525006,1742611859053,-500.0,0.00046849,120]
[356525007,1742611859062,-1019.72,0.00046849,120]
[356525008,1742611859070,-506.8549614,0.00046849,120]